fUSD/lending_fUSD_20240802
["ID","MTS","AMOUNT","RATE_DAILY","PERIOD"]
[333859581,1722574244883,-151.0,0.0001742,2]
[333859582,1722574244893,-299.975008,0.0001742,2]
[333859583,1722574244902,-151.0,0.0001742,2]
[333859584,1722574244912,-299.975008,0.0001742,2]
[333859585,1722574244922,-1185.773581,0.0001742,2]
[333859586,1722574244931,-1185.773581,0.0001742,2]
[333859587,1722574244941,-151.0,0.0001742,2]
[333859588,1722574244951,-151.0,0.0001742,2]
[333859589,1722574244961,-151.0,0.0001742,2]
[333859590,1722574244971,-151.0,0.0001742,2]
[333859591,1722574244980,-151.0,0.0001742,2]
[333859592,1722574244990,-151.0,0.0001742,2]
[333859593,1722574244999,-151.0,0.0001742,2]
[333859594,1722574245009,-440.588384,0.0001742,2]
[333859595,1722574245019,-440.588384,0.0001742,2]
[333859596,1722574245028,-259.481726,0.0001742,2]
[333859597,1722574245038,-259.481726,0.0001742,2]
[333859598,1722574245047,-151.0,0.0001742,2]
[333859599,1722574245057,-151.0,0.0001742,2]
[333859600,1722574245067,-273.480326,0.0001742,2]
[333859601,1722574245076,-273.480326,0.0001742,2]
[333859602,1722574245090,-403.427385,0.0001742,2]
[333859603,1722574245100,-403.427385,0.0001742,2]
[333859604,1722574245110,-2278.906888,0.0001742,2]
[333859605,1722574245120,-263.53605,0.0001742,2]
[333859606,1722574245130,-263.53605,0.0001742,2]
[333859607,1722574245140,-151.0,0.0001742,2]
[333859608,1722574245150,-2278.906888,0.0001742,2]
[333859609,1722574245161,-284.253472,0.0001742,2]
[333859610,1722574245171,-284.253472,0.0001742,2]
[333859611,1722574245180,-151.0,0.0001742,2]
[333859612,1722574245190,-341.59881,0.0001742,2]
[333859613,1722574245200,-151.0,0.0001742,2]
[333859614,1722574245209,-6758.65714,0.0001742,2]
[333859615,1722574245219,-151.0,0.0001742,2]
[333859616,1722574245229,-6758.65714,0.0001742,2]
[333859617,1722574245239,-341.59881,0.0001742,2]
[333859618,1722574245249,-180.04956,0.0001742,2]
[333859619,1722574245258,-276.166449,0.0001742,2]
[333859620,1722574245268,-276.166449,0.0001742,2]
[333859621,1722574245278,-639.579434,0.0001742,2]
[333859622,1722574245288,-639.579434,0.0001742,2]
[333859623,1722574245297,-332.028963,0.0001742,2]
[333859624,1722574245307,-332.028963,0.0001742,2]
[333859625,1722574245316,-252.046482,0.0001742,2]
[333859626,1722574245326,-252.046482,0.0001742,2]
[333859627,1722574245336,-151.0,0.0001742,2]
[333859628,1722574245345,-151.0,0.0001742,2]
[333859629,1722574245355,-2049.813708,0.0001742,2]
[333859630,1722574245365,-2049.813708,0.0001742,2]
[333859631,1722574245374,-151.0,0.0001742,2]
[333859632,1722574245384,-151.0,0.0001742,2]
[333859633,1722574245394,-194.670013,0.0001742,2]
[333859634,1722574245404,-1625.623424,0.0001742,2]
[333859635,1722574245414,-194.670013,0.0001742,2]
[333859636,1722574245424,-1625.623424,0.0001742,2]
[333859637,1722574245434,-151.0,0.00017421,2]
[333859638,1722574245444,-710.607569,0.00017421,2]
[333859639,1722574245453,-710.607569,0.00017421,2]
[333859640,1722574245463,-162.054262,0.00017421,2]
[333859641,1722574245473,-162.054262,0.00017421,2]
[333859642,1722574245482,-181.485817,0.00017421,2]
[333859643,1722574245492,-181.485817,0.00017421,2]
[333859644,1722574245502,-4020.984703,0.00017421,2]
[333859645,1722574245512,-4020.984703,0.00017421,2]
[333859646,1722574245521,-1498.313976,0.00017421,2]
[333859647,1722574245531,-1498.313976,0.00017421,2]
[333859648,1722574245541,-155.731935,0.00017421,2]
[333859649,1722574245551,-755.358678,0.00017421,2]
[333859650,1722574245560,-155.731935,0.00017421,2]
[333859651,1722574245571,-755.358678,0.00017421,2]
[333859652,1722574245581,-151.0,0.00017421,2]
[333859653,1722574245591,-3900.298432,0.00017421,2]
[333859654,1722574245601,-3900.298432,0.00017421,2]
[333859655,1722574245611,-1803.312054,0.00017421,2]
[333859656,1722574245620,-1803.312054,0.00017421,2]
[333859657,1722574245630,-384.626328,0.00017421,2]
[333859658,1722574245639,-530.826915,0.00017421,2]
[333859659,1722574245650,-253.249037,0.00017421,2]
[333859660,1722574245661,-530.826915,0.00017421,2]
[333859661,1722574245671,-384.626328,0.00017421,2]
[333859662,1722574245680,-253.249037,0.00017421,2]
[333859663,1722574245690,-614.982914,0.00017421,2]
[333859664,1722574245700,-614.982914,0.00017421,2]
[333859665,1722574245710,-212.85488,0.00017421,2]
[333859666,1722574245721,-157.756612,0.00017421,2]
[333859667,1722574245731,-151.0,0.00017421,2]
[333859669,1722574245740,-647.430194,0.00017421,2]
[333859670,1722574245751,-212.85488,0.00017421,2]
[333859671,1722574245761,-157.756612,0.00017421,2]
[333859672,1722574245771,-647.430194,0.00017421,2]
[333859673,1722574245781,-472.214764,0.00017421,2]
[333859674,1722574245791,-332.279741,0.00017421,2]
[333859676,1722574245801,-332.279741,0.00017421,2]
[333859677,1722574245811,-472.214764,0.00017421,2]
[333859678,1722574245821,-579.0,0.00017425,2]
[333859679,1722574245831,-11237.0,0.00017425,2]
[333859680,1722574245842,-781.936404,0.00017426,2]
[333859681,1722574245852,-781.936404,0.00017426,2]
[333859682,1722574245866,-3000.0,0.00017426,2]
[333859683,1722574245875,-3000.0,0.00017426,2]
[333859684,1722574245885,-641.589965,0.00017426,2]
[333859685,1722574245896,-227.723428,0.00017426,2]
[333859686,1722574245906,-641.589965,0.00017426,2]
[333859687,1722574245916,-227.723428,0.00017426,2]
[333859688,1722574245926,-151.0,0.00017426,2]
[333859689,1722574245936,-151.0,0.00017426,2]
[333859690,1722574245946,-2923.122339,0.00017426,2]
[333859691,1722574245956,-10000.0,0.00017426,2]
[333859692,1722574245966,-2923.122339,0.00017426,2]
[333859693,1722574245977,-1657.89719326,0.00017426,2]
[333859717,1722574247522,-176.415849,0.00017416,2]
[333859718,1722574247532,-600.524833,0.00017426,2]
[333859719,1722574247543,-2693.64910135,0.00017426,2]
[333859720,1722574247554,-3710.81251125,0.00017426,2]
[333859721,1722574247565,-741.84716134,0.00017426,2]
[333859722,1722574247639,-176.415849,0.00016427,2]
[333859723,1722574247649,-176.415849,0.00016567,2]
[333859724,1722574247658,-176.415849,0.00016912,2]
[333859725,1722574247667,-176.415849,0.0001698,2]
[333859726,1722574247677,-108.62692712,0.00017004,2]
[333859727,1722574247688,-67.78892188,0.00017004,2]
[333859728,1722574247697,-176.415849,0.00017296,2]
[333859729,1722574247706,-595.2691998,0.00017426,2]
[333859730,1722574247715,-880.37016188,0.00017426,2]
[333859731,1722574247727,-529.60407928,0.00017426,2]
[333859732,1722574247738,-397.66172814,0.00017426,2]
[333859733,1722574247749,-594.45977949,0.00017426,2]
[333859734,1722574247760,-636.87818,0.00017426,2]
[333859735,1722574247771,-1224.57528119,0.00017426,2]
[333859736,1722574247790,-176.415849,0.00017381,2]
[333859737,1722574247800,-5736.45079002,0.00017426,2]
[333859738,1722574247809,-3401.317663,0.00017426,2]
[333859739,1722574247819,-576.829577,0.00017426,2]
[333859740,1722574247828,-3401.317663,0.00017426,2]
[333859741,1722574247838,-576.829577,0.00017426,2]
[333859742,1722574247848,-548.784218,0.00017426,2]
[333859743,1722574247857,-548.784218,0.00017426,2]
[333859744,1722574247868,-151.0,0.00017426,2]
[333859745,1722574247878,-151.0,0.00017426,2]
[333859746,1722574247887,-151.0,0.00017426,2]
[333859747,1722574247897,-151.0,0.00017426,2]
[333859748,1722574247908,-189.421915,0.00017426,2]
[333859749,1722574247918,-545.120266,0.00017426,2]
[333859750,1722574247931,-189.421915,0.00017426,2]
[333859751,1722574247942,-545.120266,0.00017426,2]
[333859752,1722574247952,-151.0,0.00017426,2]
[333859753,1722574247964,-151.0,0.00017426,2]
[333859754,1722574247975,-194.670013,0.00017426,2]
[333859755,1722574247986,-1625.623424,0.00017426,2]
[333859756,1722574247996,-194.670013,0.00017426,2]
[333859757,1722574248007,-1625.623424,0.00017426,2]
[333859758,1722574248017,-252.046482,0.00017431,2]
[333859759,1722574248027,-252.046482,0.00017431,2]
[333859760,1722574248037,-2049.813708,0.00017431,2]
[333859761,1722574248048,-2049.813708,0.00017431,2]
[333859762,1722574248059,-151.0,0.00017431,2]
[333859763,1722574248068,-710.607569,0.00017431,2]
[333859764,1722574248078,-710.607569,0.00017431,2]
[333859765,1722574248092,-162.054262,0.00017431,2]
[333859766,1722574248101,-162.054262,0.00017431,2]
[333859767,1722574248111,-181.485817,0.00017431,2]
[333859768,1722574248120,-181.485817,0.00017431,2]
[333859769,1722574248131,-4020.984703,0.00017431,2]
[333859770,1722574248140,-2276.7625738,0.00017431,2]
[333859771,1722574248153,-1744.2221292,0.00017431,2]
[333859772,1722574248163,-652.3115311,0.00017431,2]
[333859773,1722574248176,-846.0024449,0.00017431,2]
[333859774,1722574248186,-1498.313976,0.00017431,2]
[333859775,1722574248196,-155.731935,0.00017431,2]
[333859776,1722574248206,-755.358678,0.00017431,2]
[333859777,1722574248216,-755.358678,0.00017431,2]
[333859778,1722574248226,-155.731935,0.00017431,2]
[333859779,1722574248236,-151.0,0.00017431,2]
[333859780,1722574248245,-3900.298432,0.00017431,2]
[333859781,1722574248254,-3900.298432,0.00017431,2]
[333859782,1722574248264,-1803.312054,0.00017431,2]
[333859783,1722574248273,-1803.312054,0.00017431,2]
[333859784,1722574248282,-384.626328,0.00017431,2]
[333859785,1722574248293,-530.826915,0.00017431,2]
[333859786,1722574248302,-253.249037,0.00017431,2]
[333859787,1722574248311,-530.826915,0.00017431,2]
[333859788,1722574248321,-384.626328,0.00017431,2]
[333859789,1722574248331,-253.249037,0.00017431,2]
[333859790,1722574248341,-614.982914,0.00017431,2]
[333859791,1722574248351,-614.982914,0.00017431,2]
[333859792,1722574248360,-212.85488,0.00017431,2]
[333859793,1722574248370,-157.756612,0.00017431,2]
[333859794,1722574248380,-151.0,0.00017431,2]
[333859795,1722574248389,-647.430194,0.00017431,2]
[333859796,1722574248399,-212.85488,0.00017431,2]
[333859797,1722574248410,-157.756612,0.00017431,2]
[333859798,1722574248419,-647.430194,0.00017431,2]
[333859799,1722574248428,-472.214764,0.00017431,2]
[333859800,1722574248437,-332.279741,0.00017431,2]
[333859801,1722574248447,-332.279741,0.00017431,2]
[333859802,1722574248456,-472.214764,0.00017431,2]
[333859803,1722574248466,-176.415849,0.00017431,2]
[333859804,1722574248476,-150.0,0.00017439,2]
[333859805,1722574248486,-2891.905432,0.00017441,2]
[333859806,1722574248495,-2891.905432,0.00017441,2]
[333859807,1722574248505,-2320.149399,0.00017441,2]
[333859808,1722574248514,-151.0,0.00017441,2]
[333859809,1722574248524,-2320.149399,0.00017441,2]
[333859810,1722574248533,-151.0,0.00017441,2]
[333859811,1722574248543,-151.0,0.00017441,2]
[333859812,1722574248552,-1429.335615,0.00017441,2]
[333859813,1722574248562,-1429.335615,0.00017441,2]
[333859814,1722574248571,-387.027,0.00017441,2]
[333859815,1722574248580,-334.39488249,0.00017441,2]
[333859816,1722574248593,-52.63211751,0.00017441,2]
[333859817,1722574248603,-151.0,0.00017441,2]
[333859818,1722574248613,-151.0,0.00017441,2]
[333859819,1722574248622,-151.0,0.00017441,2]
[333859820,1722574248632,-151.0,0.00017441,2]
[333859821,1722574248642,-151.0,0.00017441,2]
[333859822,1722574248652,-151.0,0.00017441,2]
[333859823,1722574248661,-353.13109,0.00017441,2]
[333859824,1722574248671,-442.020559,0.00017441,2]
[333859825,1722574248681,-353.13109,0.00017441,2]
[333859826,1722574248690,-442.020559,0.00017441,2]
[333859827,1722574248700,-151.0,0.00017441,2]
[333859828,1722574248710,-151.0,0.00017441,2]
[333859829,1722574248719,-396.086747,0.00017441,2]
[333859830,1722574248729,-396.086747,0.00017441,2]
[333859831,1722574248738,-440.588384,0.00017441,2]
[333859832,1722574248748,-440.588384,0.00017441,2]
[333859833,1722574248758,-639.579434,0.00017441,2]
[333859834,1722574248767,-639.579434,0.00017441,2]
[333859835,1722574248777,-259.481726,0.00017463,2]
[333859836,1722574248787,-259.481726,0.00017463,2]
[333859837,1722574248796,-151.0,0.00017463,2]
[333859838,1722574248806,-151.0,0.00017463,2]
[333859839,1722574248816,-273.480326,0.00017463,2]
[333859840,1722574248826,-43.66871954,0.00017463,2]
[333859841,1722574248839,-229.81160646,0.00017463,2]
[333859842,1722574248849,-162.48329731,0.00017463,2]
[333859843,1722574248861,-240.94408769,0.00017463,2]
[333859844,1722574248870,-403.427385,0.00017463,2]
[333859845,1722574248880,-368.90274595,0.00017463,2]
[333859846,1722574248892,-645.78496436,0.00017463,2]
[333859847,1722574248903,-482.00237009,0.00017463,2]
[333859848,1722574248915,-782.2168076,0.00017463,2]
[333859849,1722574248925,-263.53605,0.00017463,2]
[333859850,1722574248935,-263.53605,0.00017463,2]
[333859851,1722574248945,-151.0,0.00017463,2]
[333859852,1722574248955,-2278.906888,0.00017463,2]
[333859853,1722574248965,-284.253472,0.00017463,2]
[333859854,1722574248975,-284.253472,0.00017463,2]
[333859855,1722574248985,-151.0,0.00017463,2]
[333859856,1722574248994,-341.59881,0.00017463,2]
[333859857,1722574249004,-151.0,0.00017463,2]
[333859858,1722574249013,-6758.65714,0.00017463,2]
[333859859,1722574249023,-151.0,0.00017463,2]
[333859860,1722574249032,-750.63006493,0.00017463,2]
[333859861,1722574249045,-305.20127118,0.00017463,2]
[333859862,1722574249324,-344.831931,0.00016427,2]
[333859863,1722574249333,-44.79931267,0.00016567,2]
[333859864,1722574249346,-300.03261833,0.00016567,2]
[333859865,1722574249356,-1000.0,0.00017196,2]
[333859866,1722574249365,-236.13645283,0.00017363,2]
[333859867,1722574249375,-176.415849,0.00017406,2]
[333859868,1722574249384,-176.415849,0.00017416,2]
[333859869,1722574249393,-176.415849,0.00017431,2]
[333859870,1722574249403,-5702.82580389,0.00017463,2]
[333859871,1722574249413,-341.59881,0.00017463,2]
[333859872,1722574249422,-276.166449,0.00017463,2]
[333859873,1722574249431,-276.166449,0.00017463,2]
[333859874,1722574249441,-332.028963,0.00017463,2]
[333859875,1722574249452,-332.028963,0.00017463,2]
[333859876,1722574249461,-781.936404,0.00017463,2]
[333859877,1722574249470,-781.936404,0.00017463,2]
[333859878,1722574249479,-3000.0,0.00017463,2]
[333859879,1722574249489,-3000.0,0.00017463,2]
[333859880,1722574249498,-641.589965,0.00017463,2]
[333859881,1722574249507,-227.723428,0.00017463,2]
[333859882,1722574249517,-641.589965,0.00017463,2]
[333859883,1722574249526,-227.723428,0.00017463,2]
[333859884,1722574249535,-151.0,0.00017463,2]
[333859885,1722574249545,-151.0,0.00017463,2]
[333859886,1722574249554,-2923.122339,0.00017463,2]
[333859887,1722574249564,-10000.0,0.00017463,2]
[333859888,1722574249573,-2923.122339,0.00017463,2]
[333859889,1722574249582,-10000.0,0.00017463,2]
[333859890,1722574249593,-10000.0,0.00017463,2]
[333859891,1722574249602,-3401.317663,0.00017463,2]
[333859892,1722574249613,-576.829577,0.00017463,2]
[333859893,1722574249622,-3401.317663,0.00017463,2]
[333859894,1722574249632,-576.829577,0.00017463,2]
[333859895,1722574249641,-548.784218,0.00017463,2]
[333859896,1722574249651,-548.784218,0.00017463,2]
[333859897,1722574249660,-252.046482,0.00017463,2]
[333859898,1722574249669,-252.046482,0.00017463,2]
[333859899,1722574249678,-151.0,0.00017463,2]
[333859900,1722574249687,-151.0,0.00017463,2]
[333859901,1722574249697,-151.0,0.00017463,2]
[333859902,1722574249707,-245.134574,0.00017463,2]
[333859903,1722574249716,-189.421915,0.00017463,2]
[333859904,1722574249726,-545.120266,0.00017463,2]
[333859905,1722574249735,-2049.813708,0.00017463,2]
[333859906,1722574249744,-189.421915,0.00017463,2]
[333859907,1722574249754,-545.120266,0.00017463,2]
[333859908,1722574249764,-2049.813708,0.00017463,2]
[333859909,1722574249773,-151.0,0.00017463,2]
[333859910,1722574249783,-710.607569,0.00017463,2]
[333859911,1722574249792,-710.607562,0.00017463,2]
[333859912,1722574249802,-151.0,0.00017463,2]
[333859913,1722574249811,-162.054262,0.00017463,2]
[333859914,1722574249821,-162.054268,0.00017463,2]
[333859915,1722574249830,-151.0,0.00017463,2]
[333859916,1722574249841,-181.485817,0.00017463,2]
[333859917,1722574249851,-181.485813,0.00017463,2]
[333859918,1722574249861,-4020.984703,0.00017463,2]
[333859919,1722574249871,-4020.984704,0.00017463,2]
[333859920,1722574249880,-1498.313976,0.00017463,2]
[333859921,1722574249890,-1498.313973,0.00017463,2]
[333859922,1722574249900,-155.731935,0.00017463,2]
[333859923,1722574249910,-755.358678,0.00017463,2]
[333859924,1722574249919,-755.358678,0.00017463,2]
[333859925,1722574249929,-155.731927,0.00017463,2]
[333859926,1722574249939,-151.0,0.00017463,2]
[333859927,1722574249948,-3900.298432,0.00017463,2]
[333859928,1722574249957,-3900.298422,0.00017463,2]
[333859929,1722574249967,-1803.312054,0.00017463,2]
[333859930,1722574249976,-1803.312047,0.00017463,2]
[333859931,1722574249986,-384.626328,0.00017463,2]
[333859932,1722574249996,-530.826915,0.00017463,2]
[333859933,1722574250005,-253.249037,0.00017463,2]
[333859934,1722574250015,-530.826907,0.00017463,2]
[333859935,1722574250025,-384.626333,0.00017463,2]
[333859936,1722574250034,-253.249037,0.00017463,2]
[333859937,1722574250044,-194.670013,0.00017463,2]
[333859938,1722574250054,-614.982914,0.00017463,2]
[333859939,1722574250063,-1625.623424,0.00017463,2]
[333859940,1722574250073,-194.670013,0.00017463,2]
[333859941,1722574250084,-614.982922,0.00017463,2]
[333859942,1722574250102,-212.85488,0.00017463,2]
[333859943,1722574250115,-157.756612,0.00017463,2]
[333859944,1722574250124,-151.0,0.00017463,2]
[333859945,1722574250134,-1625.623428,0.00017463,2]
[333859946,1722574250143,-647.430194,0.00017463,2]
[333859947,1722574250152,-212.854887,0.00017463,2]
[333859948,1722574250163,-157.756613,0.00017463,2]
[333859949,1722574250172,-647.430191,0.00017463,2]
[333859950,1722574250181,-472.214764,0.00017463,2]
[333859951,1722574250191,-332.279741,0.00017463,2]
[333859952,1722574250200,-332.279746,0.00017463,2]
[333859953,1722574250209,-472.214758,0.00017463,2]
[333859954,1722574250219,-677.78733,0.00017473,2]
[333859955,1722574250228,-677.78733,0.00017473,2]
[333859956,1722574250237,-151.0,0.00017473,2]
[333859957,1722574250247,-151.0,0.00017473,2]
[333859958,1722574250256,-426.925432,0.00017473,2]
[333859959,1722574250266,-426.925432,0.00017473,2]
[333859960,1722574250275,-151.0,0.00017473,2]
[333859961,1722574250283,-151.0,0.00017473,2]
[333859962,1722574250293,-213.587047,0.00017473,2]
[333859963,1722574250302,-213.587047,0.00017473,2]
[333859964,1722574250311,-151.0,0.00017473,2]
[333859965,1722574250320,-151.0,0.00017473,2]
[333859966,1722574250330,-255.61926,0.00017473,2]
[333859967,1722574250340,-2818.870051,0.00017473,2]
[333859968,1722574250349,-2818.870051,0.00017473,2]
[333859969,1722574250358,-639.579434,0.00017473,2]
[333859970,1722574250367,-639.579434,0.00017473,2]
[333859971,1722574250377,-151.0,0.00017483,2]
[333859972,1722574250386,-151.0,0.00017483,2]
[333859973,1722574250395,-151.0,0.00017483,2]
[333859974,1722574250404,-274.96899,0.00017483,2]
[333859975,1722574250413,-151.0,0.00017483,2]
[333859976,1722574250423,-151.0,0.00017483,2]
[333859977,1722574250432,-151.0,0.00017483,2]
[333859978,1722574250441,-158.606761,0.00017483,2]
[333859979,1722574250451,-151.0,0.00017483,2]
[333859980,1722574250460,-158.606761,0.00017483,2]
[333859981,1722574250470,-210.395067,0.00017483,2]
[333859982,1722574250479,-210.395067,0.00017483,2]
[333859983,1722574250488,-246.800131,0.00017483,2]
[333859984,1722574250497,-246.800131,0.00017483,2]
[333859985,1722574250507,-164.836962,0.00017483,2]
[333859986,1722574250516,-164.836962,0.00017483,2]
[333859987,1722574250525,-516.414554,0.00017483,2]
[333859988,1722574250534,-151.0,0.00017483,2]
[333859989,1722574250544,-151.0,0.00017483,2]
[333859990,1722574250553,-440.588384,0.00017483,2]
[333859991,1722574250562,-440.588384,0.00017483,2]
[333859992,1722574250572,-259.481726,0.00017483,2]
[333859993,1722574250581,-259.481726,0.00017483,2]
[333859994,1722574250591,-151.0,0.00017483,2]
[333859995,1722574250600,-151.0,0.00017483,2]
[333859996,1722574250609,-273.480326,0.00017483,2]
[333859997,1722574250618,-273.480326,0.00017483,2]
[333859998,1722574250627,-403.427385,0.00017483,2]
[333859999,1722574250636,-403.427385,0.00017483,2]
[333860000,1722574250646,-2278.906888,0.00017483,2]
[333860001,1722574250655,-263.53605,0.00017483,2]
[333860002,1722574250664,-263.53605,0.00017483,2]
[333860003,1722574250673,-151.0,0.00017483,2]
[333860004,1722574250682,-2278.906888,0.00017483,2]
[333860005,1722574250691,-151.0,0.00017483,2]
[333860006,1722574250700,-278.825105,0.00017483,2]
[333860007,1722574250709,-6758.65714,0.00017483,2]
[333860008,1722574250718,-151.0,0.00017483,2]
[333860009,1722574250728,-6758.65714,0.00017483,2]
[333860010,1722574250737,-276.166449,0.00017483,2]
[333860011,1722574250747,-276.166449,0.00017483,2]
[333860012,1722574250756,-332.028963,0.00017483,2]
[333860013,1722574250765,-332.028963,0.00017483,2]
[333860014,1722574250774,-781.936404,0.00017483,2]
[333860015,1722574250783,-423.02076385,0.00017483,2]
[333860016,1722574250795,-358.91564015,0.00017483,2]
[333860017,1722574250805,-3000.0,0.00017483,2]
[333860018,1722574250814,-2895.57508614,0.00017483,2]
[333860019,1722574250825,-104.42491386,0.00017483,2]
[333860020,1722574250835,-641.589965,0.00017483,2]
[333860021,1722574250845,-227.723428,0.00017483,2]
[333860022,1722574250854,-641.589965,0.00017483,2]
[333860023,1722574250865,-227.723428,0.00017483,2]
[333860024,1722574250874,-151.0,0.00017483,2]
[333860025,1722574250883,-284.140346,0.00017483,2]
[333860026,1722574250893,-2923.122339,0.00017483,2]
[333860027,1722574250902,-1173.68561516,0.00017483,2]
[333860028,1722574250915,-8826.31438484,0.00017483,2]
[333860029,1722574250924,-2923.122339,0.00017483,2]
[333860030,1722574250933,-10000.0,0.00017483,2]
[333860031,1722574250943,-2318.859374,0.00017483,2]
[333860032,1722574250954,-3401.317663,0.00017483,2]
[333860033,1722574250965,-576.829577,0.00017483,2]
[333860034,1722574250974,-3401.317663,0.00017483,2]
[333860035,1722574250983,-576.829577,0.00017483,2]
[333860036,1722574250994,-548.784218,0.00017483,2]
[333860037,1722574251003,-548.784218,0.00017483,2]
[333860038,1722574251012,-151.0,0.00017483,2]
[333860039,1722574251022,-151.0,0.00017483,2]
[333860040,1722574251031,-151.0,0.00017483,2]
[333860041,1722574251040,-189.421915,0.00017483,2]
[333860042,1722574251049,-545.120266,0.00017483,2]
[333860043,1722574251059,-189.421915,0.00017483,2]
[333860044,1722574251069,-545.120266,0.00017483,2]
[333860045,1722574251079,-151.0,0.00017483,2]
[333860046,1722574251090,-151.0,0.00017483,2]
[333860047,1722574251100,-150.0,0.00017484,2]
[333860048,1722574251109,-150.0,0.00017487,2]
[333860049,1722574251118,-284.253472,0.00017488,2]
[333860050,1722574251127,-284.253472,0.00017488,2]
[333860051,1722574251138,-341.59881,0.00017488,2]
[333860052,1722574251147,-341.59881,0.00017488,2]
[333860053,1722574251156,-151.0,0.00017493,2]
[333860054,1722574251166,-151.0,0.00017493,2]
[333860055,1722574251176,-151.0,0.00017493,2]
[333860056,1722574251185,-151.0,0.00017493,2]
[333860057,1722574251194,-151.0,0.00017493,2]
[333860058,1722574251204,-151.0,0.00017493,2]
[333860059,1722574251213,-151.0,0.00017493,2]
[333860060,1722574251222,-151.0,0.00017493,2]
[333860061,1722574251231,-210.395067,0.00017493,2]
[333860062,1722574251241,-210.395067,0.00017493,2]
[333860063,1722574251250,-151.0,0.00017493,2]
[333860064,1722574251259,-153.632,0.00017493,2]
[333860065,1722574251270,-151.0,0.00017493,2]
[333860066,1722574251279,-299.975008,0.00017493,2]
[333860067,1722574251288,-151.0,0.00017493,2]
[333860068,1722574251298,-299.975008,0.00017493,2]
[333860069,1722574251306,-1185.773581,0.00017493,2]
[333860070,1722574251315,-1185.773581,0.00017493,2]
[333860071,1722574251324,-151.0,0.00017493,2]
[333860072,1722574251333,-677.78733,0.00017493,2]
[333860073,1722574251343,-151.0,0.00017493,2]
[333860074,1722574251352,-677.78733,0.00017493,2]
[333860075,1722574251362,-151.0,0.00017493,2]
[333860076,1722574251371,-151.0,0.00017493,2]
[333860077,1722574251380,-151.0,0.00017493,2]
[333860078,1722574251389,-151.0,0.00017493,2]
[333860079,1722574251398,-426.925432,0.00017493,2]
[333860080,1722574251407,-151.0,0.00017493,2]
[333860081,1722574251416,-426.925432,0.00017493,2]
[333860082,1722574251426,-151.0,0.00017493,2]
[333860083,1722574251435,-151.0,0.00017493,2]
[333860084,1722574251444,-213.587047,0.00017493,2]
[333860085,1722574251454,-213.587047,0.00017493,2]
[333860086,1722574251463,-2891.905432,0.00017493,2]
[333860087,1722574251472,-2891.905432,0.00017493,2]
[333860088,1722574251481,-151.0,0.00017493,2]
[333860089,1722574251491,-2320.149399,0.00017493,2]
[333860090,1722574251500,-151.0,0.00017493,2]
[333860091,1722574251509,-2320.149399,0.00017493,2]
[333860092,1722574251518,-151.0,0.00017493,2]
[333860093,1722574251527,-151.0,0.00017493,2]
[333860094,1722574251537,-151.0,0.00017493,2]
[333860095,1722574251546,-1429.335615,0.00017493,2]
[333860096,1722574251555,-1429.335615,0.00017493,2]
[333860097,1722574251564,-2818.870051,0.00017493,2]
[333860098,1722574251573,-387.027,0.00017493,2]
[333860099,1722574251584,-2818.870051,0.00017493,2]
[333860100,1722574251594,-387.027,0.00017493,2]
[333860101,1722574251603,-151.0,0.00017493,2]
[333860102,1722574251612,-151.0,0.00017493,2]
[333860103,1722574251622,-151.0,0.00017493,2]
[333860104,1722574251631,-151.0,0.00017493,2]
[333860105,1722574251640,-151.0,0.00017493,2]